[Event "56th Biel Festival MTO 2023"]
[White "Coles,Ruben"]
[Black "Schnepp,Gunnar"]
[Site "Biel"]
[Round "6.27"]
[Annotator "ChessBase"]
[Result "1-0"]
[Date "2023.07.24"]
[WhiteElo "2167"]
[BlackElo "2278"]
[PlyCount "75"]
[TimeControl "60"]

1. e4 {[%emt 0:0:0]} c5 {[%emt 0:0:0]} 2. Nf3 {[%emt 0:0:0]} Nc6 {[%emt 0:0:0]} 3. Bb5 {[%emt 0:0:0]} g6 {[%emt 0:0:0]} 4. O-O {[%emt 0:0:0]} Bg7 {[%emt 0:0:0]} 5. c3 {[%emt 0:0:0]} Nf6 {[%emt 0:0:0]} 6. Re1 {[%emt 0:0:0]} O-O {[%emt 0:0:0]} 7. d4 {[%emt 0:0:0]} d5 {[%emt 0:0:36]} 8. e5 {[%emt 0:0:0]} Ne4 {[%emt 0:0:24]} 9. Bxc6 {[%emt 0:0:0]} bxc6 {[%emt 0:0:6]} 10. Be3 {[%emt 0:0:0]} Rb8 {[%emt 0:2:37]} 11. Qc1 {[%emt 0:0:0]} c4 {[%emt 0:1:29]} 12. Nbd2 {[%emt 0:0:0]} Nxd2 {[%emt 0:1:58]} 13. Nxd2 {[%emt 0:0:0]} Bf5 {[%emt 0:0:50]} 14. b3 {[%emt 0:1:20]} Bd3 {[%emt 0:6:51]} 15. Qa3 {[%emt 0:5:28]} Rb5 {[%emt 0:33:38]} 16. Qxa7 {[%emt 0:12:33]} Ra5 {[%emt 0:1:53]} 17. Qb7 {[%emt 0:0:32]} Qa8 {[%emt 0:0:48]} 18. Qxe7 {[%emt 0:5:55]} Re8 {[%emt 0:1:58]} 19. Qg5 {[%emt 0:7:56]} Rxa2 {[%emt 0:8:49]} 20. Rxa2 {[%emt 0:3:59]} Qxa2 {[%emt 0:0:3]} 21. bxc4 {[%emt 0:1:21]} dxc4 {[%emt 0:0:46]} 22. Qg4 {[%emt 0:10:19]} Qa5 {[%emt 0:29:36]} 23. Ne4 {[%emt 0:9:46]} f5 {[%emt 0:0:37]} 24. exf6 {[%emt 0:3:58]} Rxe4 {[%emt 0:0:32]} 25. Qc8+ {[%emt 0:0:7]} Bf8 {[%emt 0:0:9]} 26. f3 {[%emt 0:0:23]} Qxc3 {[%emt 0:1:46]} 27. Rc1 {[%emt 0:3:16]} Bc2 {[%emt 0:4:26]} 28. Bh6 {[%emt 0:2:26]} Re1+ {[%emt 0:0:21]} 29. Kf2 {[%emt 0:0:7]} Qxd4+ {[%emt 0:0:56]} 30. Kxe1 {[%emt 0:0:32]} Qg1+ {[%emt 0:0:34]} 31. Kd2 {[%emt 0:1:9]} Qd4+ {[%emt 0:0:38]} 32. Ke1 {[%emt 0:1:19]} Qg1+ {[%emt 0:1:5]} 33. Ke2 {[%emt 0:1:52]} Bd3+ {[%emt 0:1:33]} 34. Kd2 {[%emt 0:0:7]} Qf2+ {[%emt 0:1:50]} 35. Kc3 {[%emt 0:0:20]} Qc5 {[%emt 0:0:11]} 36. Qe6+ {[%emt 0:0:23]} Kh8 {[%emt 0:0:6]} 37. Bxf8 {[%emt 0:0:18]} Qxf8 {[%emt 0:0:23]} 38. Qe7 {[%emt 0:0:38]} 1-0

[Event "56th Biel Festival MTO 2023"]
[White "Vincenti,Leonardo"]
[Black "Vasquez Toledo,Cristian"]
[Site "Biel"]
[Round "6.28"]
[Annotator "ChessBase"]
[Result "0-1"]
[Date "2023.07.24"]
[WhiteElo "2117"]
[BlackElo "2233"]
[PlyCount "77"]
[TimeControl "60"]

1. e4 {[%emt 0:0:0]} c5 {[%emt 0:0:0]} 2. Nf3 {[%emt 0:0:0]} Nc6 {[%emt 0:0:0]} 3. Bb5 {[%emt 0:0:0]} e6 {[%emt 0:0:0]} 4. O-O {[%emt 0:0:0]} Nge7 {[%emt 0:0:0]} 5. Re1 {[%emt 0:0:0]} a6 {[%emt 0:0:0]} 6. Bxc6 {[%emt 0:0:0]} Nxc6 {[%emt 0:0:0]} 7. d4 {[%emt 0:0:0]} cxd4 {[%emt 0:0:0]} 8. Nxd4 {[%emt 0:0:0]} d6 {[%emt 0:4:14]} 9. c4 {[%emt 0:0:0]} Be7 {[%emt 0:0:57]} 10. Nc3 {[%emt 0:1:5]} O-O {[%emt 0:1:6]} 11. Be3 {[%emt 0:4:21]} Bd7 {[%emt 0:2:39]} 12. Qe2 {[%emt 0:2:32]} Rc8 {[%emt 0:4:14]} 13. Rac1 {[%emt 0:1:16]} Qc7 {[%emt 0:2:8]} 14. b3 {[%emt 0:3:41]} Bf6 {[%emt 0:8:42]} 15. Red1 {[%emt 0:4:55]} Rfd8 {[%emt 0:0:20]} 16. f3 {[%emt 0:19:23]} Nxd4 {[%emt 0:33:49]} 17. Bxd4 {[%emt 0:0:5]} Bxd4+ {[%emt 0:0:5]} 18. Rxd4 {[%emt 0:0:2]} b5 {[%emt 0:0:7]} 19. Rcd1 {[%emt 0:11:4]} Bc6 {[%emt 0:0:22]} 20. Qd2 {[%emt 0:11:42]} bxc4 {[%emt 0:1:0]} 21. bxc4 {[%emt 0:1:40]} Be8 {[%emt 0:0:53]} 22. e5 {[%emt 0:13:58]} Qc5 {[%emt 0:7:13]} 23. Ne4 {[%emt 0:2:37]} Qxe5 {[%emt 0:0:6]} 24. Rxd6 {[%emt 0:6:24]} Rxd6 {[%emt 0:0:9]} 25. Qxd6 {[%emt 0:0:1]} Qa5 {[%emt 0:0:44]} 26. c5 {[%emt 0:2:34]} Bc6 {[%emt 0:5:43]} 27. Qd2 {[%emt 0:7:13]} Qxd2 {[%emt 0:1:25]} 28. Rxd2 {[%emt 0:4:36]} Bxe4 {[%emt 0:7:3]} 29. fxe4 {[%emt 0:0:1]} Kf8 {[%emt 0:0:6]} 30. Rc2 {[%emt 0:3:43]} Ke7 {[%emt 0:0:18]} 31. Kf2 {[%emt 0:0:39]} Kd7 {[%emt 0:0:11]} 32. Rd2+ {[%emt 0:1:33]} Kc6 {[%emt 0:2:49]} 33. Rd6+ {[%emt 0:0:2]} Kxc5 {[%emt 0:0:6]} 34. Rxa6 {[%emt 0:0:5]} Kd4 {[%emt 0:2:18]} 35. Ra7 {[%emt 0:0:13]} f6 {[%emt 0:1:49]} 36. Rxg7 {[%emt 0:0:43]} Kxe4 {[%emt 0:17:54]} 37. Rxh7 {[%emt 0:2:52]} Rc2+ {[%emt 0:0:30]} 38. Kg3 {[%emt 0:0:30]} Rxa2 {[%emt 0:0:30]} 39. h3 {[%emt 0:0:30]} 0-1

[Event "56th Biel Festival MTO 2023"]
[White "Morawietz,Dieter"]
[Black "Malli,Suvirr"]
[Site "Biel"]
[Round "6.29"]
[Annotator "ChessBase"]
[Result "1-0"]
[Date "2023.07.24"]
[WhiteElo "2396"]
[BlackElo "2094"]
[PlyCount "99"]
[TimeControl "60"]

1. d4 {[%emt 0:0:0]} d5 {[%emt 0:0:0]} 2. Nf3 {[%emt 0:0:0]} Nf6 {[%emt 0:0:0]} 3. Bf4 {[%emt 0:0:0]} c5 {[%emt 0:0:0]} 4. e3 {[%emt 0:0:0]} Nc6 {[%emt 0:0:0]} 5. Nbd2 {[%emt 0:0:0]} cxd4 {[%emt 0:0:0]} 6. exd4 {[%emt 0:0:0]} Bf5 {[%emt 0:0:0]} 7. c3 {[%emt 0:0:0]} e6 {[%emt 0:0:0]} 8. Qb3 {[%emt 0:1:4]} Bd6 {[%emt 0:0:0]} 9. Qxb7 {[%emt 0:13:18]} Bxf4 {[%emt 0:0:0]} 10. Qxc6+ {[%emt 0:0:5]} Kf8 {[%emt 0:0:0]} 11. Qa6 {[%emt 0:8:29]} h5 {[%emt 0:1:18]} 12. g3 {[%emt 0:7:2]} Bd6 {[%emt 0:9:53]} 13. Bg2 {[%emt 0:5:47]} Kg8 {[%emt 0:3:37]} 14. O-O {[%emt 0:9:28]} Ne4 {[%emt 0:17:48]} 15. Qe2 {[%emt 0:11:28]} Rb8 {[%emt 0:8:7]} 16. Nxe4 {[%emt 0:0:47]} Bxe4 {[%emt 0:2:27]} 17. Ne5 {[%emt 0:5:11]} Bxe5 {[%emt 0:2:46]} 18. dxe5 {[%emt 0:0:30]} Bf5 {[%emt 0:0:30]} 19. h3 {[%emt 0:0:30]} a5 {[%emt 0:2:46]} 20. Rfd1 {[%emt 0:1:32]} Qb6 {[%emt 0:3:23]} 21. Rd2 {[%emt 0:9:12]} a4 {[%emt 0:8:42]} 22. Rad1 {[%emt 0:0:30]} Qc5 {[%emt 0:0:30]} 23. a3 {[%emt 0:6:21]} Qb5 {[%emt 0:3:13]} 24. Bf1 {[%emt 0:0:30]} Qxe2 {[%emt 0:0:59]} 25. Rxe2 {[%emt 0:0:7]} Kh7 {[%emt 0:2:56]} 26. Rd4 {[%emt 0:0:8]} Ra8 {[%emt 0:0:20]} 27. Red2 {[%emt 0:9:22]} Rhb8 {[%emt 0:1:12]} 28. Be2 {[%emt 0:2:14]} Rb7 {[%emt 0:4:27]} 29. Bxh5 {[%emt 0:0:37]} Rab8 {[%emt 0:0:36]} 30. Rb4 {[%emt 0:0:8]} Rxb4 {[%emt 0:1:23]} 31. cxb4 {[%emt 0:0:35]} Bxh3 {[%emt 0:1:38]} 32. Bd1 {[%emt 0:0:15]} Ra8 {[%emt 0:0:0]} 33. g4 {[%emt 0:0:24]} Kg6 {[%emt 0:0:26]} 34. f4 {[%emt 0:2:59]} Rc8 {[%emt 0:1:51]} 35. Kf2 {[%emt 0:2:36]} f5 {[%emt 0:1:36]} 36. g5 {[%emt 0:0:55]} Ra8 {[%emt 0:4:13]} 37. b5 {[%emt 0:3:17]} Ra5 {[%emt 0:4:3]} 38. Be2 {[%emt 0:0:16]} Bg4 {[%emt 0:0:28]} 39. Bf1 {[%emt 0:0:16]} Ra8 {[%emt 0:1:6]} 40. Ke3 {[%emt 0:2:11]} Rc8 {[%emt 0:2:12]} 41. Kd4 {[%emt 0:30:22]} Kf7 {[%emt 0:30:57]} 42. Bd3 {[%emt 0:0:53]} Ke7 {[%emt 0:0:47]} 43. Rc2 {[%emt 0:0:9]} Rh8 {[%emt 0:2:46]} 44. Rc7+ {[%emt 0:0:36]} Kd8 {[%emt 0:0:6]} 45. b6 {[%emt 0:0:46]} Rh2 {[%emt 0:0:37]} 46. Rc2 {[%emt 0:0:50]} Rxc2 {[%emt 0:0:37]} 47. Bxc2 {[%emt 0:0:6]} Kc8 {[%emt 0:0:8]} 48. Bxa4 {[%emt 0:0:20]} Bh5 {[%emt 0:0:34]} 49. Bc6 {[%emt 0:0:14]} Kb8 {[%emt 0:0:29]} 50. a4 {[%emt 0:0:5]} 1-0

[Event "56th Biel Festival MTO 2023"]
[White "Haimovich,Tal"]
[Black "Foerster-Yialamas,Lucas"]
[Site "Biel"]
[Round "6.30"]
[Annotator "ChessBase"]
[Result "1-0"]
[Date "2023.07.24"]
[WhiteElo "2374"]
[BlackElo "2157"]
[PlyCount "139"]
[TimeControl "60"]

1. Nf3 {[%emt 0:0:0]} Nf6 {[%emt 0:0:0]} 2. d4 {[%emt 0:0:0]} d5 {[%emt 0:0:0]} 3. c4 {[%emt 0:0:0]} c6 {[%emt 0:0:0]} 4. Qc2 {[%emt 0:0:0]} dxc4 {[%emt 0:0:0]} 5. Qxc4 {[%emt 0:0:0]} Bf5 {[%emt 0:0:0]} 6. g3 {[%emt 0:0:0]} e6 {[%emt 0:0:0]} 7. Bg2 {[%emt 0:0:0]} Nbd7 {[%emt 0:0:0]} 8. O-O {[%emt 0:0:0]} Bd6 {[%emt 0:0:0]} 9. Nc3 {[%emt 0:2:11]} e5 {[%emt 0:3:32]} 10. Bg5 {[%emt 0:21:8]} h6 {[%emt 0:4:26]} 11. dxe5 {[%emt 0:3:16]} Nxe5 {[%emt 0:1:32]} 12. Nxe5 {[%emt 0:1:47]} Bxe5 {[%emt 0:1:18]} 13. Rfd1 {[%emt 0:3:56]} Qc8 {[%emt 0:1:5]} 14. Bf4 {[%emt 0:6:29]} Bxf4 {[%emt 0:4:15]} 15. Qxf4 {[%emt 0:0:11]} O-O {[%emt 0:2:2]} 16. Rd6 {[%emt 0:3:43]} Re8 {[%emt 0:6:59]} 17. Rad1 {[%emt 0:4:26]} Bc2 {[%emt 0:4:26]} 18. R1d2 {[%emt 0:3:6]} Qf5 {[%emt 0:0:47]} 19. Rxf6 {[%emt 0:4:16]} gxf6 {[%emt 0:0:32]} 20. e4 {[%emt 0:0:7]} Bxe4 {[%emt 0:3:51]} 21. Nxe4 {[%emt 0:4:19]} Qxf4 {[%emt 0:0:12]} 22. gxf4 {[%emt 0:0:5]} Kg7 {[%emt 0:0:18]} 23. Kf1 {[%emt 0:0:54]} Rad8 {[%emt 0:0:57]} 24. Nd6 {[%emt 0:5:9]} Kf8 {[%emt 0:1:33]} 25. Bh3 {[%emt 0:8:49]} a5 {[%emt 0:3:15]} 26. Bf5 {[%emt 0:6:8]} Ke7 {[%emt 0:3:44]} 27. Nc4 {[%emt 0:0:27]} Rxd2 {[%emt 0:0:42]} 28. Nxd2 {[%emt 0:0:2]} Kd6 {[%emt 0:1:27]} 29. Ne4+ {[%emt 0:1:43]} Ke7 {[%emt 0:0:59]} 30. Ke2 {[%emt 0:1:5]} Rd8 {[%emt 0:0:32]} 31. Ng3 {[%emt 0:8:31]} Rd4 {[%emt 0:2:32]} 32. Ke3 {[%emt 0:1:25]} Rb4 {[%emt 0:2:49]} 33. b3 {[%emt 0:0:10]} a4 {[%emt 0:0:42]} 34. Bc2 {[%emt 0:0:17]} axb3 {[%emt 0:0:44]} 35. axb3 {[%emt 0:0:26]} Rb5 {[%emt 0:5:39]} 36. Nf5+ {[%emt 0:1:34]} Kf8 {[%emt 0:0:56]} 37. h4 {[%emt 0:2:19]} Rc5 {[%emt 0:1:18]} 38. Kd2 {[%emt 0:0:16]} h5 {[%emt 0:0:50]} 39. Ng3 {[%emt 0:4:31]} Kg7 {[%emt 0:1:26]} 40. Bd3 {[%emt 0:1:58]} Rd5 {[%emt 0:4:44]} 41. Kc3 {[%emt 0:32:30]} b6 {[%emt 0:37:19]} 42. Be4 {[%emt 0:0:0]} Rc5+ {[%emt 0:0:0]} 43. Kb2 {[%emt 0:0:0]} b5 {[%emt 0:0:0]} 44. Nf5+ {[%emt 0:0:0]} Kf8 {[%emt 0:0:0]} 45. Nd6 {[%emt 0:0:0]} b4 {[%emt 0:0:0]} 46. Nc4 {[%emt 0:0:0]} Ke7 {[%emt 0:0:0]} 47. Kc2 {[%emt 0:0:0]} Rb5 {[%emt 0:0:0]} 48. Kd3 {[%emt 0:0:0]} c5 {[%emt 0:0:0]} 49. Ne3 {[%emt 0:0:0]} Ra5 {[%emt 0:0:0]} 50. Bd5 {[%emt 0:0:0]} Ra2 {[%emt 0:0:0]} 51. Nf5+ {[%emt 0:0:0]} Kf8 {[%emt 0:0:0]} 52. f3 {[%emt 0:0:0]} Ra1 {[%emt 0:0:0]} 53. Ke3 {[%emt 0:2:1]} Rc1 {[%emt 0:0:29]} 54. Bc4 {[%emt 0:0:57]} Rc3+ {[%emt 0:1:41]} 55. Ke4 {[%emt 0:2:18]} Kg8 {[%emt 0:1:6]} 56. Ng3 {[%emt 0:0:49]} Kf8 {[%emt 0:1:10]} 57. Nxh5 {[%emt 0:0:19]} f5+ {[%emt 0:0:8]} 58. Kd5 {[%emt 0:1:8]} Rxf3 {[%emt 0:0:10]} 59. Ke5 {[%emt 0:1:48]} Rh3 {[%emt 0:0:58]} 60. Kxf5 {[%emt 0:0:30]} Rxh4 {[%emt 0:0:22]} 61. Nf6 {[%emt 0:0:8]} Rh6 {[%emt 0:1:8]} 62. Ke5 {[%emt 0:1:20]} Rg6 {[%emt 0:3:31]} 63. Nd7+ {[%emt 0:0:52]} Ke7 {[%emt 0:0:6]} 64. Nxc5 {[%emt 0:0:8]} Rb6 {[%emt 0:2:4]} 65. Nd3 {[%emt 0:0:38]} Rb8 {[%emt 0:0:0]} 66. Kd5 {[%emt 0:0:31]} Kf6 {[%emt 0:0:44]} 67. Kc5 {[%emt 0:0:27]} Kf5 {[%emt 0:0:37]} 68. Bxf7 {[%emt 0:0:30]} Ke4 {[%emt 0:0:40]} 69. Bc4 {[%emt 0:1:24]} Rb7 {[%emt 0:0:15]} 70. Bd5+ {[%emt 0:0:19]} 1-0

[Event "56th Biel Festival MTO 2023"]
[White "Karthik Rajaa"]
[Black "Ammar,Sedrani"]
[Site "Biel"]
[Round "6.31"]
[Annotator "ChessBase"]
[Result "1-0"]
[Date "2023.07.24"]
[WhiteElo "2276"]
[BlackElo "2154"]
[PlyCount "89"]
[TimeControl "60"]

1. d4 {[%emt 0:0:0]} d5 {[%emt 0:0:0]} 2. c4 {[%emt 0:0:0]} e6 {[%emt 0:0:0]} 3. Nc3 {[%emt 0:0:0]} Nf6 {[%emt 0:0:0]} 4. Bg5 {[%emt 0:0:0]} Be7 {[%emt 0:0:0]} 5. e3 {[%emt 0:0:0]} O-O {[%emt 0:0:0]} 6. Nf3 {[%emt 0:0:0]} h6 {[%emt 0:0:0]} 7. Bh4 {[%emt 0:0:0]} Ne4 {[%emt 0:0:0]} 8. Bxe7 {[%emt 0:0:0]} Qxe7 {[%emt 0:0:0]} 9. cxd5 {[%emt 0:0:0]} Nxc3 {[%emt 0:0:0]} 10. bxc3 {[%emt 0:0:0]} exd5 {[%emt 0:0:0]} 11. Qb3 {[%emt 0:0:0]} c6 {[%emt 0:0:0]} 12. Bd3 {[%emt 0:0:0]} Nd7 {[%emt 0:0:44]} 13. O-O {[%emt 0:2:31]} Nf6 {[%emt 0:8:11]} 14. a4 {[%emt 0:32:33]} Be6 {[%emt 0:21:15]} 15. Rfb1 {[%emt 0:3:17]} b6 {[%emt 0:3:19]} 16. Qa3 {[%emt 0:7:2]} Rfe8 {[%emt 0:15:5]} 17. Qxe7 {[%emt 0:1:2]} Rxe7 {[%emt 0:0:3]} 18. Ne5 {[%emt 0:18:7]} Rc7 {[%emt 0:4:33]} 19. f3 {[%emt 0:2:53]} Rd8 {[%emt 0:12:25]} 20. Kf2 {[%emt 0:1:30]} Ne8 {[%emt 0:1:44]} 21. g4 {[%emt 0:5:7]} Nd6 {[%emt 0:1:3]} 22. h4 {[%emt 0:4:2]} g6 {[%emt 0:7:2]} 23. Be2 {[%emt 0:7:25]} Kg7 {[%emt 0:1:31]} 24. Nd3 {[%emt 0:2:15]} Re8 {[%emt 0:2:14]} 25. Nf4 {[%emt 0:5:31]} f6 {[%emt 0:4:2]} 26. Bd3 {[%emt 0:2:0]} Bf7 {[%emt 0:0:3]} 27. Re1 {[%emt 0:2:20]} g5 {[%emt 0:0:55]} 28. Ne2 {[%emt 0:0:26]} Rce7 {[%emt 0:1:10]} 29. hxg5 {[%emt 0:1:3]} hxg5 {[%emt 0:1:58]} 30. Ng3 {[%emt 0:0:17]} Bg6 {[%emt 0:0:26]} 31. Bf5 {[%emt 0:1:16]} Bxf5 {[%emt 0:2:27]} 32. Nxf5+ {[%emt 0:1:8]} Nxf5 {[%emt 0:0:3]} 33. gxf5 {[%emt 0:0:1]} Rh8 {[%emt 0:0:52]} 34. Rh1 {[%emt 0:0:24]} Ree8 {[%emt 0:0:24]} 35. Rxh8 {[%emt 0:1:8]} Rxh8 {[%emt 0:0:2]} 36. Kg3 {[%emt 0:0:28]} Kf7 {[%emt 0:4:45]} 37. Re1 {[%emt 0:0:59]} Rh4 {[%emt 0:0:26]} 38. Rc1 {[%emt 0:0:42]} Ke7 {[%emt 0:2:39]} 39. c4 {[%emt 0:0:49]} dxc4 {[%emt 0:1:44]} 40. Rc3 {[%emt 0:0:1]} Kd6 {[%emt 0:0:30]} 41. Rc1 {[%emt 0:30:39]} Rh8 {[%emt 0:30:54]} 42. e4 {[%emt 0:1:28]} c5 {[%emt 0:1:50]} 43. Rd1 {[%emt 0:0:0]} Rc8 {[%emt 0:0:0]} 44. Rc1 {[%emt 0:0:0]} Kc6 {[%emt 0:0:0]} 45. f4 {[%emt 0:0:0]} 1-0

[Event "56th Biel Festival MTO 2023"]
[White "Collin,Moritz Valentin"]
[Black "Asllani,Dorian"]
[Site "Biel"]
[Round "6.32"]
[Annotator "ChessBase"]
[Result "1/2-1/2"]
[Date "2023.07.24"]
[WhiteElo "2132"]
[BlackElo "2272"]
[PlyCount "83"]
[TimeControl "60"]

1. d4 {[%emt 0:0:0]} d5 {[%emt 0:0:0]} 2. c4 {[%emt 0:0:0]} e6 {[%emt 0:0:0]} 3. Nc3 {[%emt 0:0:0]} Nf6 {[%emt 0:0:0]} 4. cxd5 {[%emt 0:0:0]} exd5 {[%emt 0:0:0]} 5. Bg5 {[%emt 0:0:0]} Nbd7 {[%emt 0:0:0]} 6. e3 {[%emt 0:0:0]} c6 {[%emt 0:0:0]} 7. Bd3 {[%emt 0:0:0]} Be7 {[%emt 0:0:0]} 8. Qc2 {[%emt 0:0:0]} O-O {[%emt 0:0:0]} 9. Nge2 {[%emt 0:0:0]} Re8 {[%emt 0:0:0]} 10. O-O {[%emt 0:0:0]} h6 {[%emt 0:0:0]} 11. Bh4 {[%emt 0:0:0]} Ne4 {[%emt 0:0:0]} 12. Bxe7 {[%emt 0:0:0]} Qxe7 {[%emt 0:0:0]} 13. Bxe4 {[%emt 0:0:0]} dxe4 {[%emt 0:0:0]} 14. Rfd1 {[%emt 0:0:0]} f5 {[%emt 0:0:0]} 15. Nf4 {[%emt 0:7:0]} Qf7 {[%emt 0:5:46]} 16. Qb3 {[%emt 0:20:19]} Nb6 {[%emt 0:30:0]} 17. Qxf7+ {[%emt 0:6:10]} Kxf7 {[%emt 0:0:40]} 18. d5 {[%emt 0:0:7]} Bd7 {[%emt 0:18:38]} 19. dxc6 {[%emt 0:18:4]} Bxc6 {[%emt 0:1:57]} 20. Rd4 {[%emt 0:2:25]} Re5 {[%emt 0:3:51]} 21. b4 {[%emt 0:5:39]} a5 {[%emt 0:7:18]} 22. h4 {[%emt 0:14:35]} axb4 {[%emt 0:12:26]} 23. Rxb4 {[%emt 0:0:10]} Nd7 {[%emt 0:0:11]} 24. h5 {[%emt 0:5:16]} Rea5 {[%emt 0:4:1]} 25. Rd1 {[%emt 0:7:55]} Rc5 {[%emt 0:5:37]} 26. Nce2 {[%emt 0:3:38]} Nf6 {[%emt 0:10:30]} 27. Nd4 {[%emt 0:4:5]} Nd5 {[%emt 0:0:21]} 28. Nxd5 {[%emt 0:1:22]} Rxd5 {[%emt 0:0:30]} 29. Rd2 {[%emt 0:4:15]} Kf6 {[%emt 0:0:41]} 30. Rc2 {[%emt 0:2:24]} Ra6 {[%emt 0:1:49]} 31. g3 {[%emt 0:1:2]} Rda5 {[%emt 0:0:26]} 32. Nxc6 {[%emt 0:0:59]} Rxc6 {[%emt 0:0:43]} 33. Rcb2 {[%emt 0:0:29]} Rca6 {[%emt 0:0:30]} 34. Rb6+ {[%emt 0:0:13]} Rxb6 {[%emt 0:0:26]} 35. Rxb6+ {[%emt 0:0:8]} Kg5 {[%emt 0:0:11]} 36. Rxb7 {[%emt 0:0:46]} Rxa2 {[%emt 0:0:17]} 37. Rxg7+ {[%emt 0:0:7]} Kxh5 {[%emt 0:0:3]} 38. Kg2 {[%emt 0:0:23]} Rb2 {[%emt 0:0:25]} 39. Rg8 {[%emt 0:1:2]} Ra2 {[%emt 0:0:12]} 40. Kg1 {[%emt 0:0:55]} Rb2 {[%emt 0:0:21]} 41. Kg2 {[%emt 0:30:11]} Ra2 {[%emt 0:30:6]} 42. Rg7 {[%emt 0:1:4]} 1/2-1/2

[Event "56th Biel Festival MTO 2023"]
[White "Abdulrahman Mohammad,Al Taher"]
[Black "Ehsani,Yassamin"]
[Site "Biel"]
[Round "6.33"]
[Annotator "ChessBase"]
[Result "1/2-1/2"]
[Date "2023.07.24"]
[WhiteElo "2258"]
[BlackElo "2106"]
[PlyCount "80"]
[TimeControl "60"]

1. d4 {[%emt 0:0:0]} d5 {[%emt 0:0:0]} 2. c4 {[%emt 0:0:0]} c6 {[%emt 0:0:0]} 3. Nc3 {[%emt 0:0:0]} Nf6 {[%emt 0:0:0]} 4. e3 {[%emt 0:0:0]} Bf5 {[%emt 0:0:0]} 5. cxd5 {[%emt 0:0:0]} cxd5 {[%emt 0:0:0]} 6. Qb3 {[%emt 0:0:0]} Nc6 {[%emt 0:0:0]} 7. Qxb7 {[%emt 0:0:0]} Bd7 {[%emt 0:0:0]} 8. Qb3 {[%emt 0:0:0]} Rb8 {[%emt 0:0:0]} 9. Qd1 {[%emt 0:0:0]} e5 {[%emt 0:0:0]} 10. dxe5 {[%emt 0:0:0]} Nxe5 {[%emt 0:0:0]} 11. Be2 {[%emt 0:0:0]} Bd6 {[%emt 0:0:0]} 12. Nf3 {[%emt 0:0:0]} Nxf3+ {[%emt 0:0:0]} 13. Bxf3 {[%emt 0:0:0]} Qc7 {[%emt 0:0:0]} 14. h3 {[%emt 0:0:0]} O-O {[%emt 0:0:0]} 15. O-O {[%emt 0:0:0]} Rfd8 {[%emt 0:2:2]} 16. a4 {[%emt 0:3:11]} Bc6 {[%emt 0:11:44]} 17. Qd3 {[%emt 0:15:19]} Bh2+ {[%emt 0:6:11]} 18. Kh1 {[%emt 0:0:8]} Be5 {[%emt 0:0:6]} 19. Nb5 {[%emt 0:10:23]} Qd7 {[%emt 0:7:17]} 20. Rd1 {[%emt 0:11:49]} h6 {[%emt 0:26:44]} 21. Ra2 {[%emt 0:10:29]} a6 {[%emt 0:8:37]} 22. Nd4 {[%emt 0:2:35]} Bxa4 {[%emt 0:9:51]} 23. b3 {[%emt 0:4:47]} Bb5 {[%emt 0:1:44]} 24. Nxb5 {[%emt 0:4:17]} Qxb5 {[%emt 0:1:33]} 25. Rxa6 {[%emt 0:6:38]} Qxd3 {[%emt 0:6:3]} 26. Rxd3 {[%emt 0:0:8]} Ne4 {[%emt 0:0:9]} 27. Ra2 {[%emt 0:5:22]} Rdc8 {[%emt 0:0:12]} 28. Ba3 {[%emt 0:3:37]} Ra8 {[%emt 0:0:11]} 29. Rxd5 {[%emt 0:2:12]} Rxa3 {[%emt 0:0:27]} 30. Rxa3 {[%emt 0:5:22]} Rc1+ {[%emt 0:0:10]} 31. Bd1 {[%emt 0:0:10]} Rxd1+ {[%emt 0:0:11]} 32. Rxd1 {[%emt 0:0:4]} Nxf2+ {[%emt 0:0:6]} 33. Kg1 {[%emt 0:0:2]} Nxd1 {[%emt 0:0:7]} 34. Ra8+ {[%emt 0:0:13]} Kh7 {[%emt 0:0:11]} 35. b4 {[%emt 0:0:11]} Nxe3 {[%emt 0:3:15]} 36. Kf2 {[%emt 0:1:19]} Nd5 {[%emt 0:4:21]} 37. b5 {[%emt 0:0:17]} Nc3 {[%emt 0:1:11]} 38. Rd8 {[%emt 0:5:12]} Bc7 {[%emt 0:6:29]} 39. Rd7 {[%emt 0:0:14]} Nxb5 {[%emt 0:0:18]} 40. Rxf7 {[%emt 0:0:8]} Bd6 {[%emt 0:1:57]} 1/2-1/2

[Event "56th Biel Festival MTO 2023"]
[White "Akshit Kumar J"]
[Black "Gomez Barrera,Javiera Belen"]
[Site "Biel"]
[Round "6.34"]
[Annotator "ChessBase"]
[Result "1/2-1/2"]
[Date "2023.07.24"]
[WhiteElo "2105"]
[BlackElo "2256"]
[PlyCount "124"]
[TimeControl "60"]

1. e4 {[%emt 0:0:0]} e5 {[%emt 0:0:0]} 2. Nf3 {[%emt 0:0:0]} Nc6 {[%emt 0:0:0]} 3. Bc4 {[%emt 0:0:0]} Bc5 {[%emt 0:0:0]} 4. c3 {[%emt 0:0:0]} Nf6 {[%emt 0:0:0]} 5. d3 {[%emt 0:0:0]} O-O {[%emt 0:0:0]} 6. O-O {[%emt 0:0:0]} d5 {[%emt 0:0:0]} 7. exd5 {[%emt 0:0:0]} Nxd5 {[%emt 0:0:0]} 8. a4 {[%emt 0:0:0]} Nb6 {[%emt 0:0:0]} 9. Bb5 {[%emt 0:0:0]} Ne7 {[%emt 0:0:56]} 10. Nxe5 {[%emt 0:0:0]} a6 {[%emt 0:14:44]} 11. Bc4 {[%emt 0:0:0]} Bd6 {[%emt 0:0:5]} 12. a5 {[%emt 0:5:9]} Bxe5 {[%emt 0:0:38]} 13. axb6 {[%emt 0:0:8]} cxb6 {[%emt 0:0:26]} 14. Re1 {[%emt 0:7:32]} Ng6 {[%emt 0:1:50]} 15. d4 {[%emt 0:12:12]} Bxh2+ {[%emt 0:3:18]} 16. Kxh2 {[%emt 0:13:18]} Qc7+ {[%emt 0:0:2]} 17. g3 {[%emt 0:7:19]} Qxc4 {[%emt 0:0:2]} 18. Qh5 {[%emt 0:0:17]} Bd7 {[%emt 0:12:38]} 19. Nd2 {[%emt 0:0:46]} Qd3 {[%emt 0:0:1]} 20. Qf3 {[%emt 0:13:55]} Qxf3 {[%emt 0:7:35]} 21. Nxf3 {[%emt 0:0:13]} f6 {[%emt 0:5:27]} 22. Nh4 {[%emt 0:6:1]} Nxh4 {[%emt 0:11:6]} 23. gxh4 {[%emt 0:0:7]} Rfe8 {[%emt 0:0:20]} 24. Bd2 {[%emt 0:3:47]} Kf7 {[%emt 0:0:55]} 25. Kg3 {[%emt 0:5:49]} Be6 {[%emt 0:8:17]} 26. Re2 {[%emt 0:4:19]} Bc4 {[%emt 0:10:39]} 27. Rxe8 {[%emt 0:0:44]} Rxe8 {[%emt 0:0:9]} 28. Re1 {[%emt 0:7:36]} Rd8 {[%emt 0:0:33]} 29. Bf4 {[%emt 0:1:51]} Rd7 {[%emt 0:1:48]} 30. Bb8 {[%emt 0:2:21]} Be6 {[%emt 0:3:52]} 31. Rd1 {[%emt 0:2:12]} b5 {[%emt 0:1:40]} 32. Bf4 {[%emt 0:5:31]} Rd5 {[%emt 0:0:39]} 33. Be3 {[%emt 0:2:22]} Rf5 {[%emt 0:4:16]} 34. Rf1 {[%emt 0:2:9]} Bc4 {[%emt 0:0:59]} 35. Rg1 {[%emt 0:0:49]} Bd5 {[%emt 0:1:29]} 36. Kg4 {[%emt 0:1:10]} Rf3 {[%emt 0:4:33]} 37. Rg3 {[%emt 0:0:44]} f5+ {[%emt 0:4:59]} 38. Kh3 {[%emt 0:0:31]} Ke6 {[%emt 0:0:49]} 39. Rxf3 {[%emt 0:0:30]} Bxf3 {[%emt 0:0:2]} 40. Kg3 {[%emt 0:0:21]} Be4 {[%emt 0:0:58]} 41. Bf4 {[%emt 0:0:0]} Kd5 {[%emt 0:0:0]} 42. f3 {[%emt 0:0:0]} Bc2 {[%emt 0:0:0]} 43. Be5 {[%emt 0:0:42]} g6 {[%emt 0:0:0]} 44. Kf4 {[%emt 0:0:51]} Bd1 {[%emt 0:0:0]} 45. Ke3 {[%emt 0:1:33]} Kc4 {[%emt 0:0:0]} 46. f4 {[%emt 0:1:19]} Bc2 {[%emt 0:0:0]} 47. Kd2 {[%emt 0:0:50]} Bb3 {[%emt 0:0:0]} 48. Bd6 {[%emt 0:6:59]} Kd5 {[%emt 0:0:0]} 49. Be7 {[%emt 0:0:9]} Ke4 {[%emt 0:0:0]} 50. Bg5 {[%emt 0:0:15]} a5 {[%emt 0:1:54]} 51. Bh6 {[%emt 0:0:35]} b4 {[%emt 0:7:1]} 52. cxb4 {[%emt 0:1:58]} axb4 {[%emt 0:0:2]} 53. Bg5 {[%emt 0:0:43]} Kxd4 {[%emt 0:0:30]} 54. Bh6 {[%emt 0:1:6]} Bc4 {[%emt 0:0:18]} 55. Bg5 {[%emt 0:0:26]} Ke4 {[%emt 0:1:5]} 56. Bh6 {[%emt 0:0:13]} Kf3 {[%emt 0:0:18]} 57. Bg5 {[%emt 0:0:6]} b6 {[%emt 0:14:8]} 58. Bh6 {[%emt 0:3:8]} Kg4 {[%emt 0:0:2]} 59. Bg5 {[%emt 0:0:14]} Kh5 {[%emt 0:0:1]} 60. Be7 {[%emt 0:0:56]} h6 {[%emt 0:0:9]} 61. Bf8 {[%emt 0:1:36]} Kxh4 {[%emt 0:5:24]} 62. Bxh6 {[%emt 0:0:20]} Kg4 {[%emt 0:0:17]} 1/2-1/2